{"text_format":"1","workbook":"xlsx","n_sheets":5,"sheets":["ЗАПОЛНИТЬ","Ф.2","Ф.4.1","Ф.4.2","Ф.4.3"],"not_rendered":{"charts":0,"images":0,"macros":1,"external_links":1,"defined_names":7,"comments":1,"pivot_tables":0},"unopened":[],"bounds":{"document_bytes":16777216,"sheet_cells":100000,"rows_first":2000,"rows_last":500,"rows_between":2000,"halvings":0,"cell_chars":16384,"cell_head_chars":4096},"cells_cut":0,"cells_raw":0,"read":"whole","date_system":"1900"}

{"sheet":"ЗАПОЛНИТЬ","index":0,"n_rows":39,"n_cols":17,"rows_kept":39,"cut":false,"hidden":false,"merged":[[2,1,2,15],[18,2,18,4],[25,5,25,7],[3,0,3,2],[3,3,3,13],[10,0,10,1],[37,0,37,13],[27,5,27,7],[11,0,11,1],[4,1,4,5],[9,8,9,14],[29,0,29,4],[29,5,29,7],[30,0,30,4],[30,5,30,7]]}
[null,"Жовтим кольором виділені поля для обов'язкового заповнення"]
[]
["Установа","Відділ освіти Жовківської РДА (Зарудцівська ЗОШ І-ІІ ст.)"]
["Назва казначейства де обслуговуєтесь",null,null,"Управління Державної казначейської служби у Жовківському районі Львівської області",null,null,null,null,null,null,null,null,null,null,"змінити на ваше УДК"]
["Територія","800300, Львівська обл., м.Жовква , вул.Є.Коновальця,4",null,null,null,null,"наприклад -смт.Слов'яносербськ (Згідно довідника КОАТУУ)"]
[]
["Вид бюджету ",null,null,null,null,2,null,null,null,null,null,"Державний"]
[null,null,null,null,null,null,null,null,null,null,null,"Місцевий"]
["Код відомчої класифікації видатків та кредитування державного бюджету",null,null,null,null,null,null,null,"сюда ставят распорядители госбюджетных средств к примеру - 670,280,350"]
["Код типової відомчої класифікації видатків місцевих бюджетів",null,null,null,null,null,null,"6","Орган з питань освіти і науки",null,null,null,null,null,null,null,"вписати назву КВК"]
["тип ліній в таблицях--->>>"]
["КОДИ"]
["за ЄДРПОУ","39013038"]
["за КОАТУУ",4622700000]
["за КОПФГ",410,null,"Орган державної влади"]
["Звіт за"]
["Звіт за","рік"," 2020 р."]
["Звіт на","1 кв.","2020 р.",{"$f":"IF(B18=\"1 квітня\",1,IF(B18=\"1 липня\",2,IF(B18=\"1 жовтня\",3,0)))","v":0},"01.10.2020 р.",18]
["Дата подання звіту",null,"1 квітня 2020 року"]
["КПОЛ","0","для ДБФ"]
["Код ГУДКСУ","06","двухзначный код вашей области для ДБФ"]
["Код УДКСУ","13","двухзначный код вашего района для ДБФ"]
["Тип бюджета","4","1- обласний, 2 - міський , 3 - район у місті , 4 - районий, 5 - міста у районах, 6 - селищний, 7 - сільський (нужен для дбф файла)"]
["Код бюджета","365","трёхзначный код бюджета из которого вы финансируетесь, его знают ваши казначеи, обычно это последние три цифры доходных счетов"]
[]
["Ініціали та прізвище КЕРІВНИКА",null,null,null,null,"Коваль М.С."]
[]
["Ініціали та прізвище ГОЛОВНОГО БУХГАЛТЕРА",null,null,null,null,"Жук О.С."]
[]
["Посада першого підпису",null,null,null,null,"Начальник"]
["Посада другого підпису",null,null,null,null,"Головний бухгалтер"]
[]
[]
[]
["Для відкриття скритих листів треба зайти ФОРМАТ  -ЛИСТ - ОТОБРАЗИТЬ"]
["ДЛЯ НОРМАЛЬНОЇ РОБОТИ ФОРМУЛ ЛИСТИ НЕОБХІДНО СКРИВАТИ А НЕ ВИДАЛЯТИ!!!!!"]
["БАЛАНС ЗАПОВНЮЄТЬСЯ В ОСТАННЮ ЧЕРГУ, СПОЧАТКУ ЗАПОВНІТЬ ВСІ ФОРМИ ПОТІМ БАЛАНС!!"]
["Ці та інші корисні бланки можно завантажити на https://buhgalter.com.ua"]
["автор розробки: Токарев Євген Васильович"]

{"sheet":"Ф.2","index":1,"n_rows":104,"n_cols":10,"rows_kept":104,"cut":false,"hidden":false,"merged":[[102,3,102,4],[102,6,102,8],[18,6,20,6],[10,1,10,6],[11,0,11,2],[12,0,12,2],[14,4,14,9],[4,0,4,5],[5,0,5,9],[18,0,20,0],[18,1,20,1],[13,0,13,2],[11,4,11,7],[18,8,20,8],[103,3,103,4],[103,6,103,7],[17,0,17,11],[18,2,20,2],[18,3,20,3],[101,6,101,7],[100,3,100,4],[100,6,100,8],[101,3,101,4],[18,9,20,9],[0,6,2,9],[18,5,20,5],[18,4,20,4],[12,4,12,9],[18,7,20,7],[3,0,3,9],[14,0,14,2],[8,1,8,6],[9,1,9,6],[13,4,13,9]]}
[null,null,null,null,null,null,"Додаток 1\nдо Порядку складання бюджетної звітності розпорядниками та одержувачами бюджетних коштів, звітності фондами загальнообов’язкового державного соціального і пенсійного страхування (пункт 1 розділу ІІ)"]
[]
[]
["ЗВІТ"]
[{"$f":"IF([1]ЗАПОЛНИТЬ!$F$7=1,CONCATENATE([1]шапки!A2),CONCATENATE([1]шапки!A2,[1]шапки!C2))","v":"про надходження та використання коштів загального фонду (форма      №2д,"},null,null,null,null,null,{"$f":"IF([1]ЗАПОЛНИТЬ!$F$7=1,[1]шапки!C2,[1]шапки!D2)","v":"      №2м)"},{"$f":"IF(ЗАПОЛНИТЬ!$F$7=1,#REF!,\"\")","v":""}]
[{"$f":"CONCATENATE(\"за \",ЗАПОЛНИТЬ!$B$17,\" \",ЗАПОЛНИТЬ!$C$17)","v":"за рік  2020 р."}]
[null,null,null,null,null,null,null,null,null,"коди"]
[]
["Установа",{"$f":"ЗАПОЛНИТЬ!B3","v":"Відділ освіти Жовківської РДА (Зарудцівська ЗОШ І-ІІ ст.)"},null,null,null,null,null,"за ЄДРПОУ",null,{"$f":"ЗАПОЛНИТЬ!B13","v":"39013038"}]
["Територія",{"$f":"ЗАПОЛНИТЬ!B5","v":"800300, Львівська обл., м.Жовква , вул.Є.Коновальця,4"},null,null,null,null,null,"за КОАТУУ",null,{"$f":"ЗАПОЛНИТЬ!B14","v":4622700000}]
["Організаційно-правова форма господарювання",{"$f":"ЗАПОЛНИТЬ!D15","v":"Орган державної влади"},null,null,null,null,null,"за КОПФГ",null,{"$f":"ЗАПОЛНИТЬ!B15","v":410}]
["Код та назва відомчої класифікації видатків та кредитування державного бюджету ",null,null,{"$f":"ЗАПОЛНИТЬ!H9","v":0},{"$f":"IF(D12>0,VLOOKUP(D12,#REF!,2,FALSE),\"\")","v":""}]
["Код та назва програмної класифікації видатків та кредитування державного бюджету",null,null,null,{"$f":"IF(D13>0,VLOOKUP(D13,#REF!,2,FALSE),\"\")","v":""}]
["Код та назва типової відомчої класифікації видатків та кредитування місцевих бюджетів",null,null,{"$f":"ЗАПОЛНИТЬ!H10","v":"6"},{"$f":"ЗАПОЛНИТЬ!I10","v":"Орган з питань освіти і науки"}]
["Код та назва програмної класифікації видатків та кредитування місцевих бюджетів (код та назва Типової програмної класифікації видатків та кредитування місцевих бюджетів / Тимчасової класифікації видатків та кредитування для бюджетів місцевого самоврядування, які не застосовують програмно-цільового методу)",null,null,"0611020","школи"]
["Періодичність: квартальна, річна"]
["Одиниця виміру: грн, коп."]
[]
["Показники","КЕКВ та/або ККК","Код рядка","Затверджено на звітний рік","Затверджено на звітний період (рік)1","Залишок на початок звітного року","Надійшло коштів за звітний період (рік)","Касові за звітний період (рік)","Фактичні за звітний період (рік)","Залишок на кінець звітного періоду (року)"]
[]
[]
[1,2,3,4,5,6,7,8,9,9]
["Видатки та надання кредитів -  усього","Х","010",{"$f":"D24+D59+D79+D84+D87","v":1834570},{"$f":"E26+E29+E32+E33+E37+E45+E46+E86+E54","v":576370},{"$f":"F24+F59+F79+F84+F87","v":0},{"$f":"G24+G59+G79+G84+G87","v":453165.12999999995},{"$f":"H24+H59+H79+H84+H87","v":453165.12999999995},{"$f":"I24+I59+I79+I84+I87","v":0},{"$f":"F23+G23-H23","v":0}]
["у тому числі:\nПоточні видатки",2000,"020",{"$f":"D25+D30+D47+D50+D54+D58","v":1834570},0,0,453165.12999999995,453165.12999999995,0,{"$f":"F24+G24-H24","v":0}]
["Оплата праці і нарахування на заробітну плату",2100,"030",{"$f":"D26+D29","v":1762000},0,{"$f":"F26+F29","v":0},{"$f":"G26+G29","v":450057.32999999996},{"$f":"H26+H29","v":450057.32999999996},{"$f":"I26+I29","v":0},0]
["Оплата праці ",2110,"040",{"$f":"SUM(D27:D28)","v":1444000},480000,0,369665.68,369665.68,0,0]
["  Заробітна плата",2111,"050",1444000,0,0,369665.68,369665.68,0,0]
["  Грошове  забезпечення військовослужбовців",2112,"060",0,0,0,0,0,0,0]
["Нарахування на оплату праці",2120,"070",318000,85000,0,80391.649999999994,80391.649999999994,0,0]
["Використання товарів і послуг",2200,"080",{"$f":"SUM(D31:D37)+D44","v":72570},0,{"$f":"SUM(F31:F37)+F44","v":0},{"$f":"SUM(G31:G37)+G44","v":3107.7999999999997},{"$f":"SUM(H31:H37)+H44","v":3107.7999999999997},{"$f":"SUM(I31:I37)+I44","v":0},0]
["Предмети, матеріали, обладнання та інвентар",2210,"090",4000,0,0,495,495,0,0]
["Медикаменти та перев’язувальні матеріали",2220,100,null,0,0,0,0,0,0]
["Продукти харчування",2230,110,9000,800,0,677.49,677.49,0,0]
["Оплата послуг (крім комунальних)",2240,120,3000,0,0,656,656,0,0]
["Видатки на відрядження",2250,130,2770,0,0,562,562,0,0]
["Видатки та заходи спеціального призначення",2260,140,0,0,0,0,0,0,0]
["Оплата комунальних послуг та енергоносіїв  ",2270,150,{"$f":"SUM(D38:D43)","v":49800},800,{"$f":"SUM(F38:F43)","v":0},{"$f":"SUM(G38:G43)","v":717.31},{"$f":"SUM(H38:H43)","v":717.31},{"$f":"SUM(I38:I43)","v":0},{"$f":"F37+G37-H37","v":0}]
["  Оплата теплопостачання",2271,160,0,0,0,0,0,0,0]
["  Оплата водопостачання  та водовідведення",2272,170,1100,0,0,120.01,120.01,0,0]
["  Оплата електроенергії",2273,180,6000,0,0,597.29999999999995,597.29999999999995,0,0]
["  Оплата природного газу",2274,190,null,0,0,0,0,0,0]
["  Оплата інших енергоносіїв",2275,200,42700,0,0,null,null,0,0]
["  Оплата енергосервісу",2276,210,0,0,0,0,0,0,{"$f":"F43+G43-H43","v":0}]
["Дослідження і розробки, окремі заходи по реалізації державних (регіональних) програм",2280,220,{"$f":"SUM(D45:D46)","v":4000},0,{"$f":"SUM(F45:F46)","v":0},{"$f":"SUM(G45:G46)","v":0},{"$f":"SUM(H45:H46)","v":0},{"$f":"SUM(I45:I46)","v":0},0]
["  Дослідження і розробки, окремі заходи розвитку по реалізації державних (регіональних) програм",2281,230,0,0,0,0,0,0,0]
["  Окремі заходи по реалізації державних (регіональних) програм, не віднесені до заходів розвитку",2282,240,4000,0,0,0,0,0,0]
["Обслуговування боргових зобов’язань ",2400,250,{"$f":"SUM(D48:D49)","v":0},0,0,0,0,0,0]
["Обслуговування внутрішніх боргових зобов’язань ",2410,260,0,0,0,0,0,0,0]
["Обслуговування зовнішніх боргових зобов’язань ",2420,270,0,0,0,0,0,0,0]
["Поточні трансферти",2600,280,{"$f":"SUM(D51:D53)","v":0},0,0,0,0,0,0]
["Субсидії та поточні трансферти підприємствам (установам, організаціям)",2610,290,0,0,0,0,0,0,0]
["Поточні трансферти органам державного управління інших рівнів",2620,300,0,0,0,0,0,0,0]
["Поточні трансферти  урядам іноземних держав та міжнародним організаціям",2630,310,0,0,0,0,0,0,0]
["Соціальне забезпечення",2700,320,{"$f":"SUM(D55:D57)","v":0},0,0,0,0,0,0]
["Виплата пенсій і допомоги",2710,330,0,0,0,0,0,0,0]
["Стипендії ",2720,340,0,0,0,0,0,0,0]
["Інші виплати населенню",2730,350,0,0,0,0,0,0,0]
["Інші поточні видатки",2800,360,0,0,0,0,0,0,0]
["Капітальні видатки",3000,370,{"$f":"D60+D74","v":0},0,0,0,0,0,0]
["Придбання основного капіталу",3100,380,{"$f":"D61+D62+D65+D68+D72+D73","v":0},0,0,0,0,0,0]
["Придбання обладнання і предметів довгострокового користування",3110,390,0,0,0,0,0,0,0]
["Капітальне будівництво (придбання)",3120,400,{"$f":"SUM(D63:D64)","v":0},0,0,0,0,0,0]
["Капітальне будівництво (придбання) житла",3121,410,0,0,0,0,0,0,0]
[" Капітальне  будівництво (придбання) інших об’єктів ",3122,420,0,0,0,0,0,0,0]
["Капітальний ремонт",3130,430,{"$f":"SUM(D66:D67)","v":0},0,0,0,0,0,0]
["  Капітальний ремонт житлового фонду (приміщень)",3131,440,0,0,0,0,0,0,0]
["  Капітальний ремонт інших об’єктів ",3132,450,0,0,0,0,0,0,0]
["Реконструкція  та  реставрація ",3140,460,{"$f":"SUM(D69:D71)","v":0},0,0,0,0,0,0]
["  Реконструкція житлового фонду (приміщень)",3141,470,0,0,0,0,0,0,0]
["  Реконструкція та реставрація  інших об’єктів",3142,480,0,0,0,0,0,0,0]
["  Реставрація пам’яток культури, історії та архітектури",3143,490,0,0,0,0,0,0,0]
["Створення державних запасів і резервів",3150,500,0,0,0,0,0,0,0]
["Придбання землі  та нематеріальних активів",3160,510,0,0,0,0,0,0,0]
["Капітальні трансферти",3200,520,{"$f":"SUM(D75:D78)","v":0},0,0,0,0,0,0]
["Капітальні трансферти підприємствам (установам, організаціям)",3210,530,0,0,0,0,0,0,0]
["Капітальні трансферти органам державного управління інших рівнів",3220,540,0,0,0,0,0,0,0]
["Капітальні трансферти  урядам іноземних держав та міжнародним організаціям",3230,550,0,0,0,0,0,0,0]
["Капітальні трансферти населенню",3240,560,0,0,0,0,0,0,0]
["Внутрішнє кредитування",4100,570,{"$f":"SUM(D80)","v":0},0,0,0,0,0,0]
["Надання внутрішніх кредитів",4110,580,{"$f":"SUM(D81:D83)","v":0},0,0,0,0,0,0]
["  Надання кредитів органам державного управління інших  рівнів",4111,590,0,0,0,0,0,0,0]
["  Надання кредитів підприємствам, установам, організаціям",4112,600,0,0,0,0,0,0,0]
["  Надання інших внутрішніх кредитів",4113,610,0,0,0,0,0,0,0]
["Зовнішнє кредитування",4200,620,{"$f":"D85","v":0},0,0,0,0,0,0]
["Надання зовнішніх кредитів",4210,630,0,0,0,0,0,0,0]
["Інші видатки",5000,640,"X",{"$f":"D31+D34+D35","v":9770},"X","X","X","X","X"]
["Нерозподілені видатки",9000,650,0,0,0,0,0,0,0]
[null,null,650]
[]
[]
[]
[]
[]
[]
[]
[]
[]
[]
[]
[" 1 Заповнюється розпорядниками бюджетних коштів."]
[{"$f":"ЗАПОЛНИТЬ!F30","v":"Начальник"},null,null,null,null,null,{"$f":"ЗАПОЛНИТЬ!F26","v":"Коваль М.С."}]
[null,null,null,"(підпис)",null,null,"(ініціали, прізвище)"]
[{"$f":"ЗАПОЛНИТЬ!F31","v":"Головний бухгалтер"},null,null,null,null,null,{"$f":"ЗАПОЛНИТЬ!F28","v":"Жук О.С."}]
[{"$f":"ЗАПОЛНИТЬ!C19","v":"1 квітня 2020 року"},null,null,"(підпис)",null,null,"(ініціали, прізвище)"]

{"sheet":"Ф.4.1","index":2,"n_rows":105,"n_cols":18,"rows_kept":105,"cut":false,"hidden":false,"merged":[[0,9,1,17],[2,0,2,17],[5,0,5,17],[18,10,20,10],[13,0,13,3],[13,6,13,17],[3,0,3,9],[8,16,8,17],[19,12,19,13],[19,11,20,11],[104,7,104,9],[101,7,101,9],[103,7,103,9],[102,7,102,9],[17,14,17,15],[17,4,17,5],[18,15,20,15],[18,4,20,4],[18,5,20,5],[19,16,20,16],[19,17,20,17],[18,14,20,14],[17,8,20,8],[17,9,20,9],[14,4,14,5],[17,16,18,17],[17,10,17,13],[18,11,18,13],[17,7,20,7],[17,0,20,0],[17,1,20,1],[11,4,11,5],[12,4,12,5],[13,4,13,5],[11,6,11,14],[17,2,20,2],[17,3,20,3],[12,6,12,17],[17,6,20,6],[8,1,8,11],[9,1,9,11],[10,1,10,11],[11,0,11,3],[12,0,12,3],[14,0,14,3],[14,6,14,17],[7,16,7,17],[8,12,8,13],[9,16,9,17],[9,12,9,13],[10,16,10,17],[10,12,10,13]]}
[null,null,null,null,null,null,null,null,null,"Додаток 2\nдо Порядку складання бюджетної звітності розпорядниками та одержувачами бюджетних коштів, звітності фондами загальнообов’язкового державного соціального і пенсійного страхування (пункт 1 розділу ІІ)"]
[]
["ЗВІТ"]
[{"$f":"IF([1]ЗАПОЛНИТЬ!$F$7=1,CONCATENATE([1]шапки!A3),CONCATENATE([1]шапки!A3,[1]шапки!C3))","v":"про надходження і використання коштів, отриманих як плата за послуги (форма№ 4-1д, "},null,null,null,null,null,null,null,null,null,{"$f":"IF([1]ЗАПОЛНИТЬ!$F$7=1,[1]шапки!C3,[1]шапки!D3)","v":"№ 4-1м),"},null,null,{"$f":"IF(ЗАПОЛНИТЬ!$F$7=1,#REF!,\"\")","v":""}]
[]
[{"$f":"CONCATENATE(\"за \",ЗАПОЛНИТЬ!$B$17,\" \",ЗАПОЛНИТЬ!$C$17)","v":"за рік  2020 р."}]
[]
[null,null,null,null,null,null,null,null,null,null,null,null,null,null,null,null,"коди"]
["Установа",{"$f":"ЗАПОЛНИТЬ!B3","v":"Відділ освіти Жовківської РДА (Зарудцівська ЗОШ І-ІІ ст.)"},null,null,null,null,null,null,null,null,null,null,{"$f":"ЗАПОЛНИТЬ!A13","v":"за ЄДРПОУ"},null,null,null,{"$f":"ЗАПОЛНИТЬ!B13","v":"39013038"}]
["Територія",{"$f":"ЗАПОЛНИТЬ!B5","v":"800300, Львівська обл., м.Жовква , вул.Є.Коновальця,4"},null,null,null,null,null,null,null,null,null,null,{"$f":"ЗАПОЛНИТЬ!A14","v":"за КОАТУУ"},null,null,null,{"$f":"ЗАПОЛНИТЬ!B14","v":4622700000}]
["Організаційно-правова форма господарювання",{"$f":"ЗАПОЛНИТЬ!D15","v":"Орган державної влади"},null,null,null,null,null,null,null,null,null,null,{"$f":"ЗАПОЛНИТЬ!A15","v":"за КОПФГ"},null,null,null,{"$f":"ЗАПОЛНИТЬ!B15","v":410}]
["Код та назва відомчої класифікації видатків та кредитування державного бюджету ",null,null,null,{"$f":"ЗАПОЛНИТЬ!H9","v":0},null,{"$f":"IF(E12>0,VLOOKUP(E12,#REF!,2,FALSE),\"\")","v":""}]
["Код та назва програмної класифікації видатків та кредитування державного бюджету",null,null,null,null,null,{"$f":"IF(E13>0,VLOOKUP(E13,#REF!,2,FALSE),\"\")","v":""}]
["Код та назва типової відомчої класифікації видатків та кредитування місцевих бюджетів",null,null,null,{"$f":"ЗАПОЛНИТЬ!H10","v":"6"},null,{"$f":"ЗАПОЛНИТЬ!I10","v":"Орган з питань освіти і науки"}]
["Код та назва програмної класифікації видатків та кредитування місцевих бюджетів (код та назва Типової програмної класифікації видатків та кредитування місцевих бюджетів / Тимчасової класифікації видатків та кредитування для бюджетів місцевого самоврядування, які не застосовують програмно-цільового методу)",null,null,null,"0611020",null,"школи"]
["Періодичність: місячна, квартальна, річна."]
["Одиниця виміру: грн, коп."]
["Показники","КЕКВ","Код рядка","Затверджено на звітний рік","Залишок на початок звітного року",null,"Перераховано залишок","Отримано залишок","Нарахо-вано доходів за звітний період (рік) ","Надій-шло коштів за звітний період (рік)","Касові за звітний період (рік)",null,null,null,"Фактичні за звітний період (рік)",null,"Залишок на кінець звітного періоду (року)"]
[null,null,null,null,"усього","у тому числі на рахунках в установах банків",null,null,null,null,"усього","у тому числі",null,null,"усього","у т.ч. проведені за видатками загального фонду"]
[null,null,null,null,null,null,null,null,null,null,null,"перерахо-вані з рахунків в установах банків","спрямовано на погашення заборгованості загального фонду",null,null,null,"усього","у тому числі на рахунках в устано-вах банків"]
[null,null,null,null,null,null,null,null,null,null,null,null,"усього","у тому числі перера-ховані з рахунків в установах банків"]
[1,2,3,4,5,6,7,8,9,9,10,11,12,13,15,16,14,15]
["Надходження коштів – усього","Х","010",{"$f":"SUM(D24:D28)","v":0},778.3,0,0,0,{"$f":"SUM(I24:I27)","v":0},{"$f":"SUM(J24:J27)","v":2406.5},"Х","Х","Х","Х","Х","Х",{"$f":"E23-G23+H23+J23-K29","v":1025.6800000000003},0]
["За послуги, що надаються бюджетними установами згідно з їх основною діяльністю","Х","020",null,"Х","Х","Х","Х",0,2406.5,"Х","Х","Х","Х","Х","Х","Х","Х"]
["Від додаткової (господарської) діяльності","Х","030",0,"Х","Х","Х","Х",0,0,"Х","Х","Х","Х","Х","Х","Х","Х"]
["Від оренди майна бюджетних установ","Х","040",0,"Х","Х","Х","Х",0,0,"Х","Х","Х","Х","Х","Х","Х","Х"]
["Від реалізації в установленому поряду майна (крім нерухомого майна)","Х","050",0,"Х","Х","Х","Х",0,0,"Х","Х","Х","Х","Х","Х","Х","Х"]
["Фінансування","Х","060",0,"Х","Х","Х","Х","Х","Х","Х","Х","Х","Х","Х","Х","Х","Х"]
["Видатки -  усього","Х","070",{"$f":"D31+D66","v":0},"Х","Х","Х","Х","Х","Х",{"$f":"K31+K66","v":2159.12},0,0,0,0,0,"Х","Х"]
["у тому числі:"]
["Поточні видатки",2000,"080",{"$f":"D32+D37+D54+D57+D61+D65","v":0},"Х","Х","Х","Х","Х","Х",{"$f":"K32+K37+K54+K57+K61+K65","v":2159.12},0,0,0,0,0,"Х","Х"]
["Оплата праці і нарахування на заробітну плату",2100,"090",{"$f":"D33+D36","v":0},"Х","Х","Х","Х","Х","Х",{"$f":"K33+K36","v":0},0,0,0,0,0,"Х","Х"]
["Оплата праці ",2110,100,{"$f":"SUM(D34:D35)","v":0},"Х","Х","Х","Х","Х","Х",{"$f":"SUM(K34:K35)","v":0},0,0,0,0,0,"Х","Х"]
["  Заробітна плата",2111,110,0,"Х","Х","Х","Х","Х","Х",0,0,0,0,0,0,"Х","Х"]
["  Грошове  забезпечення військовослужбовців",2112,120,0,"Х","Х","Х","Х","Х","Х",0,0,0,0,0,0,"Х","Х"]
["Нарахування на оплату праці",2120,130,0,"Х","Х","Х","Х","Х","Х",0,0,0,0,0,0,"Х","Х"]
["Використання товарів і послуг",2200,140,{"$f":"SUM(D38:D44)+D51","v":0},"Х","Х","Х","Х","Х","Х",{"$f":"SUM(K38:K44)+K51","v":2159.12},0,0,0,0,0,"Х","Х"]
["Предмети, матеріали, обладнання та інвентар",2210,150,0,"Х","Х","Х","Х","Х","Х",null,0,null,null,0,0,"Х","Х"]
["Медикаменти та перев’язувальні матеріали",2220,160,0,"Х","Х","Х","Х","Х","Х",null,0,0,0,0,0,"Х","Х"]
["Продукти харчування",2230,170,0,"Х","Х","Х","Х","Х","Х",2124.12,0,null,null,0,0,"Х","Х"]
["Оплата послуг (крім комунальних)",2240,180,0,"Х","Х","Х","Х","Х","Х",35,0,null,null,0,0,"Х","Х"]
["Видатки на відрядження",2250,190,0,"Х","Х","Х","Х","Х","Х",0,0,0,0,0,0,"Х","Х"]
["Видатки та заходи спеціального призначення",2260,200,0,"Х","Х","Х","Х","Х","Х",0,0,0,0,0,0,"Х","Х"]
["Оплата комунальних послуг та енергоносіїв  ",2270,210,{"$f":"SUM(D45:D50)","v":0},"Х","Х","Х","Х","Х","Х",{"$f":"SUM(K45:K50)","v":0},0,0,0,0,0,"Х","Х"]
["  Оплата теплопостачання",2271,220,0,"Х","Х","Х","Х","Х","Х",0,0,0,0,0,0,"Х","Х"]
["  Оплата водопостачання  та водовідведення",2272,230,0,"Х","Х","Х","Х","Х","Х",0,0,0,0,0,0,"Х","Х"]
["  Оплата електроенергії",2273,240,0,"Х","Х","Х","Х","Х","Х",0,0,0,0,0,0,"Х","Х"]
["  Оплата природного газу",2274,250,0,"Х","Х","Х","Х","Х","Х",0,0,0,0,0,0,"Х","Х"]
["  Оплата інших енергоносіїв",2275,260,0,"Х","Х","Х","Х","Х","Х",0,0,0,0,0,0,"Х","Х"]
["  Оплата енергосервісу",2276,270,0,"Х","Х","Х","Х","Х","Х",0,0,0,0,0,0,"Х","Х"]
["Дослідження і розробки, окремі заходи по реалізації державних (регіональних) програм",2280,280,{"$f":"SUM(D52:D53)","v":0},"Х","Х","Х","Х","Х","Х",{"$f":"SUM(K52:K53)","v":0},0,0,0,0,0,"Х","Х"]
["  Дослідження і розробки, окремі заходи розвитку по реалізації державних (регіональних) програм",2281,290,0,"Х","Х","Х","Х","Х","Х",0,0,0,0,0,0,"Х","Х"]
["  Окремі заходи по реалізації державних (регіональних) програм, не віднесені до заходів розвитку",2282,300,0,"Х","Х","Х","Х","Х","Х",0,0,0,0,0,0,"Х","Х"]
["Обслуговування боргових зобов’язань ",2400,310,{"$f":"SUM(D55:D56)","v":0},"Х","Х","Х","Х","Х","Х",{"$f":"SUM(K55:K56)","v":0},0,0,0,0,0,"Х","Х"]
["Обслуговування внутрішніх боргових зобов’язань ",2410,320,0,"Х","Х","Х","Х","Х","Х",0,0,0,0,0,0,"Х","Х"]
["Обслуговування зовнішніх боргових зобов’язань ",2420,330,0,"Х","Х","Х","Х","Х","Х",0,0,0,0,0,0,"Х","Х"]
["Поточні трансферти",2600,340,{"$f":"SUM(D58:D60)","v":0},"Х","Х","Х","Х","Х","Х",{"$f":"SUM(K58:K60)","v":0},0,0,0,0,0,"Х","Х"]
["Субсидії та поточні трансферти підприємствам (установам, організаціям)",2610,350,0,"Х","Х","Х","Х","Х","Х",0,0,0,0,0,0,"Х","Х"]
["Поточні трансферти органам державного управління інших рівнів",2620,360,0,"Х","Х","Х","Х","Х","Х",0,0,0,0,0,0,"Х","Х"]
["Поточні трансферти  урядам іноземних держав та міжнародним організаціям",2630,370,0,"Х","Х","Х","Х","Х","Х",0,0,0,0,0,0,"Х","Х"]
["Соціальне забезпечення",2700,380,{"$f":"SUM(D62:D64)","v":0},"Х","Х","Х","Х","Х","Х",{"$f":"SUM(K62:K64)","v":0},0,0,0,0,0,"Х","Х"]
["Виплата пенсій і допомоги",2710,390,0,"Х","Х","Х","Х","Х","Х",0,0,0,0,0,0,"Х","Х"]
["Стипендії ",2720,400,0,"Х","Х","Х","Х","Х","Х",0,0,0,0,0,0,"Х","Х"]
["Інші виплати населенню",2730,410,0,"Х","Х","Х","Х","Х","Х",0,0,0,0,0,0,"Х","Х"]
["Інші поточні видатки",2800,420,0,"Х","Х","Х","Х","Х","Х",0,0,0,0,0,0,"Х","Х"]
["Капітальні видатки",3000,430,{"$f":"D67+D81","v":0},"Х","Х","Х","Х","Х","Х",{"$f":"K67+K81","v":0},0,0,0,0,0,"Х","Х"]
["Придбання основного капіталу",3100,440,{"$f":"D68+D69+D72+D75+D79+D80","v":0},"Х","Х","Х","Х","Х","Х",{"$f":"K68+K69+K72+K75+K79+K80","v":0},0,0,0,0,0,"Х","Х"]
["Придбання обладнання і предметів довгострокового користування",3110,450,0,"Х","Х","Х","Х","Х","Х",0,0,0,0,0,0,"Х","Х"]
["Капітальне будівництво (придбання)",3120,460,{"$f":"SUM(D70:D71)","v":0},"Х","Х","Х","Х","Х","Х",{"$f":"SUM(K70:K71)","v":0},0,0,0,0,0,"Х","Х"]
["Капітальне будівництво (придбання) житла",3121,470,0,"Х","Х","Х","Х","Х","Х",0,0,0,0,0,0,"Х","Х"]
[" Капітальне  будівництво (придбання) інших об’єктів ",3122,480,0,"Х","Х","Х","Х","Х","Х",0,0,0,0,0,0,"Х","Х"]
["Капітальний ремонт",3130,490,{"$f":"SUM(D73:D74)","v":0},"Х","Х","Х","Х","Х","Х",{"$f":"SUM(K73:K74)","v":0},0,0,0,0,0,"Х","Х"]
["  Капітальний ремонт житлового фонду (приміщень)",3131,500,0,"Х","Х","Х","Х","Х","Х",0,0,0,0,0,0,"Х","Х"]
["  Капітальний ремонт інших об’єктів ",3132,510,0,"Х","Х","Х","Х","Х","Х",0,0,0,0,0,0,"Х","Х"]
["Реконструкція  та  реставрація ",3140,520,{"$f":"SUM(D76:D78)","v":0},"Х","Х","Х","Х","Х","Х",{"$f":"SUM(K76:K78)","v":0},0,0,0,0,0,"Х","Х"]
["  Реконструкція житлового фонду (приміщень)",3141,530,0,"Х","Х","Х","Х","Х","Х",0,0,0,0,0,0,"Х","Х"]
["  Реконструкція та реставрація  інших об’єктів",3142,540,0,"Х","Х","Х","Х","Х","Х",0,0,0,0,0,0,"Х","Х"]
["  Реставрація пам’яток культури, історії та архітектури",3143,550,0,"Х","Х","Х","Х","Х","Х",0,0,0,0,0,0,"Х","Х"]
["Створення державних запасів і резервів",3150,560,0,"Х","Х","Х","Х","Х","Х",0,0,0,0,0,0,"Х","Х"]
["Придбання землі  та нематеріальних активів",3160,570,0,"Х","Х","Х","Х","Х","Х",0,0,0,0,0,0,"Х","Х"]
["Капітальні трансферти",3200,580,{"$f":"SUM(D82:D85)","v":0},"Х","Х","Х","Х","Х","Х",{"$f":"SUM(K82:K85)","v":0},0,0,0,0,0,"Х","Х"]
["Капітальні трансферти підприємствам (установам, організаціям)",3210,590,0,"Х","Х","Х","Х","Х","Х",0,0,0,0,0,0,"Х","Х"]
["Капітальні трансферти органам державного управління інших рівнів",3220,600,0,"Х","Х","Х","Х","Х","Х",0,0,0,0,0,0,"Х","Х"]
["Капітальні трансферти  урядам іноземних держав та міжнародним організаціям",3230,610,0,"Х","Х","Х","Х","Х","Х",0,0,0,0,0,0,"Х","Х"]
["Капітальні трансферти населенню",3240,620,0,"Х","Х","Х","Х","Х","Х",0,0,0,0,0,0,"Х","Х"]
[]
[]
["Капітальні трансферти до бюджету розвитку",2450,610,"-",null,"Х","Х","Х","Х","Х","-",null,null,"-","-","-",null,"Х"]
["Внутрішнє кредитування",4100,620,"Х",null,"Х","Х","Х","Х","Х","Х",null,null,"Х","Х","Х",null,"Х"]
["Надання внутрішніх кредитів",4110,630,"Х",null,"Х","Х","Х","Х","Х","Х",null,null,"Х","Х","Х",null,"Х"]
["  Надання кредитів органам державного управління інших  рівнів",4111,640,"Х",null,"Х","Х","Х","Х","Х","Х",null,null,"Х","Х","Х",null,"Х"]
["  Надання кредитів підприємствам, установам, організаціям",4112,650,"Х",null,"Х","Х","Х","Х","Х","Х",null,null,"Х","Х","Х",null,"Х"]
["  Надання інших внутрішніх кредитів",4113,660,"Х",null,"Х","Х","Х","Х","Х","Х",null,null,"Х","Х","Х",null,"Х"]
["Повернення внутрішніх кредитів",4120,670,"Х",null,"Х","Х","Х","Х","Х","Х",null,null,"Х","Х","Х",null,"Х"]
["   Повернення кредитів органами державного управління інших  рівнів",4121,680,"Х",null,"Х","Х","Х","Х","Х","Х",null,null,"Х","Х","Х",null,"Х"]
["    Повернення кредитів підприємствами, установами, організаціями",4122,690,"Х",null,"Х","Х","Х","Х","Х","Х",null,null,"Х","Х","Х",null,"Х"]
["   Повернення інших внутрішніх кредитів",4123,700,"Х",null,"Х","Х","Х","Х","Х","Х",null,null,"Х","Х","Х",null,"Х"]
["Зовнішнє кредитування",4200,710,"Х",null,"Х","Х","Х","Х","Х","Х",null,null,"Х","Х","Х",null,"Х"]
["Надання зовнішніх кредитів",4210,720,"Х",null,"Х","Х","Х","Х","Х","Х",null,null,"Х","Х","Х",null,"Х"]
["Повернення зовнішніх кредитів",4220,730,"Х",null,"Х","Х","Х","Х","Х","Х",null,null,"Х","Х","Х",null,"Х"]
[]
[{"$f":"ЗАПОЛНИТЬ!F30","v":"Начальник"},null,null,null,null,null,null,{"$f":"ЗАПОЛНИТЬ!F26","v":"Коваль М.С."}]
[null,null,null,"(підпис)",null,null,null,"(ініціали, прізвище)"]
[{"$f":"ЗАПОЛНИТЬ!F31","v":"Головний бухгалтер"},null,null,null,null,null,null,{"$f":"ЗАПОЛНИТЬ!F28","v":"Жук О.С."}]
[{"$f":"ЗАПОЛНИТЬ!C19","v":"1 квітня 2020 року"},null,null,"(підпис)",null,null,null,"(ініціали, прізвище)"]

{"sheet":"Ф.4.2","index":3,"n_rows":105,"n_cols":14,"rows_kept":105,"cut":false,"hidden":false,"merged":[[11,4,11,9],[12,0,12,2],[2,0,2,12],[3,0,3,12],[8,1,8,9],[4,0,4,2],[5,0,5,12],[7,12,7,13],[8,12,8,13],[17,8,19,8],[14,4,14,12],[9,12,9,13],[10,12,10,13],[9,1,9,9],[13,4,13,12],[12,4,12,12],[13,0,13,2],[10,1,10,9],[11,0,11,2],[17,11,19,11],[17,6,19,6],[0,8,1,12],[103,1,103,2],[103,4,103,6],[100,1,100,2],[100,4,100,8],[101,1,101,2],[101,4,101,6],[102,1,102,2],[102,4,102,8],[14,0,14,2],[17,12,18,13],[17,9,18,10],[17,0,19,0],[17,2,19,2],[17,3,19,3],[17,7,19,7],[17,4,18,5],[17,1,19,1]]}
[null,null,null,null,null,null,null,null,"Додаток 3\nдо Порядку складання бюджетної звітності розпорядниками та одержувачами бюджетних коштів, звітності фондами загальнообов’язкового державного соціального і пенсійного страхування (пункт 1 розділу ІІ)"]
[]
["ЗВІТ"]
["про надходження і використання коштів, отриманих за іншими джерелами власних надходжень"]
[{"$f":"IF([1]ЗАПОЛНИТЬ!$F$7=1,CONCATENATE([1]шапки!A4),CONCATENATE([1]шапки!A4,[1]шапки!C4))","v":"(форма № 4-2д, "},null,null,{"$f":"IF([1]ЗАПОЛНИТЬ!$F$7=1,[1]шапки!C4,[1]шапки!D4)","v":"№ 4-2м),"},{"$f":"IF([1]ЗАПОЛНИТЬ!$F$7=1,[1]шапки!D4,\"\")","v":""}]
[{"$f":"CONCATENATE(\"за \",ЗАПОЛНИТЬ!$B$17,\" \",ЗАПОЛНИТЬ!$C$17)","v":"за рік  2020 р."}]
[]
[null,null,null,null,null,null,null,null,null,null,null,null,"коди"]
["Установа",{"$f":"ЗАПОЛНИТЬ!B3","v":"Відділ освіти Жовківської РДА (Зарудцівська ЗОШ І-ІІ ст.)"},null,null,null,null,null,null,null,null,{"$f":"ЗАПОЛНИТЬ!A13","v":"за ЄДРПОУ"},null,{"$f":"ЗАПОЛНИТЬ!B13","v":"39013038"}]
["Територія",{"$f":"ЗАПОЛНИТЬ!B5","v":"800300, Львівська обл., м.Жовква , вул.Є.Коновальця,4"},null,null,null,null,null,null,null,null,{"$f":"ЗАПОЛНИТЬ!A14","v":"за КОАТУУ"},null,{"$f":"ЗАПОЛНИТЬ!B14","v":4622700000}]
["Організаційно-правова форма господарювання",{"$f":"ЗАПОЛНИТЬ!D15","v":"Орган державної влади"},null,null,null,null,null,null,null,null,{"$f":"ЗАПОЛНИТЬ!A15","v":"за КОПФГ"},null,{"$f":"ЗАПОЛНИТЬ!B15","v":410}]
["Код та назва відомчої класифікації видатків та кредитування державного бюджету ",null,null,{"$f":"ЗАПОЛНИТЬ!H9","v":0},{"$f":"IF(D12>0,VLOOKUP(D12,#REF!,2,FALSE),\"\")","v":""}]
["Код та назва програмної класифікації видатків та кредитування державного бюджету",null,null,null,{"$f":"IF(D13>0,VLOOKUP(D13,#REF!,2,FALSE),\"\")","v":""}]
["Код та назва типової відомчої класифікації видатків та кредитування місцевих бюджетів",null,null,{"$f":"ЗАПОЛНИТЬ!H10","v":"6"},{"$f":"ЗАПОЛНИТЬ!I10","v":"Орган з питань освіти і науки"}]
["Код та назва програмної класифікації видатків та кредитування місцевих бюджетів (код та назва Типової програмної класифікації видатків та кредитування місцевих бюджетів / Тимчасової класифікації видатків та кредитування для бюджетів місцевого самоврядування, які не застосовують програмно-цільового методу)",null,null,"0611020","школи"]
["Періодичність: місячна, квартальна, річна."]
["Одиниця виміру: грн, коп."]
["Показники","КЕКВ та/або ККК","Код рядка","Затверджено\nна звітний рік\n","Залишок на початок звітного року",null,"Перераховано залишок","Нараховано доходів за звітний період (рік)","Надійшло коштів за звітний період (рік)","Касові за звітний період (рік)",null,"Фактичні за звітний період (рік)","Залишок на кінець звітного періоду (року)"]
[]
[null,null,null,null,"усього","у тому числі на рахунках в установах банків",null,null,null,"усього","у тому числі перераховані з рахунків в установах банків",null,"усього","у тому числі на рахунках в установах банків"]
[1,2,3,4,5,6,7,8,8,9,10,12,11,12]
["Надходження коштів – усього","Х","010",{"$f":"SUM(D23:D27)","v":0},0,0,0,{"$f":"H25","v":0},{"$f":"SUM(I23:I26)","v":0},"Х","Х","Х",{"$f":"E22-F22-G22+I22-J28-K28","v":0},0]
["Від отриманих благодійних внесків, грантів та дарунків","Х","020",0,"Х","Х","Х","Х",null,"Х","Х","Х","Х","Х"]
["Від підприємств, організацій, фізичних осіб та від інших бюджетних установ для виконання цільових заходів, у тому числі заходів з відчуження для суспільних потреб земельних ділянок та розміщення на них інших об’єктів нерухомого майна, що перебувають у приватній власності фізичних або юридичних осіб","Х","030",0,"Х","Х","Х","Х",0,"Х","Х","Х","Х","Х"]
["Вищих та професійно-технічних навчальних закладів від розміщення на депозитах тимчасово вільних бюджетних коштів, отриманих за надання платних послуг, якщо таким закладам законом надано відповідне право; державних і комунальних вищих навчальних закладів, державних наукових установ, державних і комунальних закладів культури як відсотків, нарахованих на залишок коштів на поточних рахунках, відкритих у банках державного сектору для розміщення власних надходжень, отриманих як плата за послуги, що надаються ними згідно з основною діяльністю, благодійні внески та гранти","Х","040",0,"Х","Х","Х",0,0,"Х","Х","Х","Х","Х"]
["Від реалізації майнових прав на фільми, вихідні матеріали фільмів та фільмокопій, створені за бюджетні кошти за державним замовленням або на умовах фінансової підтримки","Х","050",0,"Х","Х","Х","Х",0,"Х","Х","Х","Х","Х"]
["Фінансування","Х","060",0,"Х","Х","Х","Х","Х","Х","Х","Х","Х","Х"]
["Видатки та надання кредитів- усього","Х","070",{"$f":"D30+D65+D88+D97","v":0},"Х","Х","Х","Х","Х",{"$f":"J30+J65+J88+J97","v":0},{"$f":"K30+K65+K88+K97","v":0},{"$f":"L30+L65+L88+L97","v":0},"Х","Х"]
["у тому числі:"]
["Поточні видатки",2000,"080",{"$f":"D31+D36+D53+D56+D60+D64","v":0},"Х","Х","Х","Х","Х",{"$f":"J31+J36+J53+J56+J60+J64","v":0},{"$f":"K31+K36+K53+K56+K60+K64","v":0},{"$f":"L31+L36+L53+L56+L60+L64","v":0},"Х","Х"]
["Оплата праці і нарахування на заробітну плату",2100,"090",{"$f":"D32+D35","v":0},"Х","Х","Х","Х","Х",{"$f":"J32+J35","v":0},{"$f":"K32+K35","v":0},{"$f":"L32+L35","v":0},"Х","Х"]
["Оплата праці ",2110,"100",{"$f":"SUM(D33:D34)","v":0},"Х","Х","Х","Х","Х",{"$f":"SUM(J33:J34)","v":0},{"$f":"SUM(K33:K34)","v":0},{"$f":"SUM(L33:L34)","v":0},"Х","Х"]
["  Заробітна плата",2111,110,0,"Х","Х","Х","Х","Х",0,0,0,"Х","Х"]
["  Грошове  забезпечення військовослужбовців",2112,120,0,"Х","Х","Х","Х","Х",0,0,0,"Х","Х"]
["Нарахування на оплату праці",2120,130,0,"Х","Х","Х","Х","Х",0,0,0,"Х","Х"]
["Використання товарів і послуг",2200,140,{"$f":"SUM(D37:D43)+D50","v":0},"Х","Х","Х","Х","Х",{"$f":"SUM(J37:J43)+J50","v":0},{"$f":"SUM(K37:K43)+K50","v":0},{"$f":"SUM(L37:L43)+L50","v":0},"Х","Х"]
["Предмети, матеріали, обладнання та інвентар",2210,150,null,"Х","Х","Х","Х","Х",null,0,0,"Х","Х"]
["Медикаменти та перев’язувальні матеріали",2220,160,0,"Х","Х","Х","Х","Х",0,0,0,"Х","Х"]
["Продукти харчування",2230,170,0,"Х","Х","Х","Х","Х",0,0,0,"Х","Х"]
["Оплата послуг (крім комунальних)",2240,180,0,"Х","Х","Х","Х","Х",0,0,0,"Х","Х"]
["Видатки на відрядження",2250,190,0,"Х","Х","Х","Х","Х",0,0,0,"Х","Х"]
["Видатки та заходи спеціального призначення",2260,200,0,"Х","Х","Х","Х","Х",0,0,0,"Х","Х"]
["Оплата комунальних послуг та енергоносіїв  ",2270,210,{"$f":"SUM(D44:D49)","v":0},"Х","Х","Х","Х","Х",{"$f":"SUM(J44:J49)","v":0},{"$f":"SUM(K44:K49)","v":0},{"$f":"SUM(L44:L49)","v":0},"Х","Х"]
["  Оплата теплопостачання",2271,220,0,"Х","Х","Х","Х","Х",0,0,0,"Х","Х"]
["  Оплата водопостачання  та водовідведення",2272,230,0,"Х","Х","Х","Х","Х",0,0,0,"Х","Х"]
["  Оплата електроенергії",2273,240,0,"Х","Х","Х","Х","Х",0,0,0,"Х","Х"]
["  Оплата природного газу",2274,250,0,"Х","Х","Х","Х","Х",0,0,0,"Х","Х"]
["  Оплата інших енергоносіїв",2275,260,0,"Х","Х","Х","Х","Х",0,0,0,"Х","Х"]
["  Оплата енргосервісу",2276,270,0,"Х","Х","Х","Х","Х",0,0,0,"Х","Х"]
["Дослідження і розробки, окремі заходи по реалізації державних (регіональних) програм",2280,280,{"$f":"SUM(D51:D52)","v":0},"Х","Х","Х","Х","Х",{"$f":"SUM(J51:J52)","v":0},{"$f":"SUM(K51:K52)","v":0},{"$f":"SUM(L51:L52)","v":0},"Х","Х"]
["  Дослідження і розробки, окремі заходи розвитку по реалізації державних (регіональних) програм",2281,290,0,"Х","Х","Х","Х","Х",0,0,0,"Х","Х"]
["  Окремі заходи по реалізації державних (регіональних) програм, не віднесені до заходів розвитку",2282,300,0,"Х","Х","Х","Х","Х",0,0,0,"Х","Х"]
["Обслуговування боргових зобов’язань ",2400,310,{"$f":"SUM(D54:D55)","v":0},"Х","Х","Х","Х","Х",{"$f":"SUM(J54:J55)","v":0},{"$f":"SUM(K54:K55)","v":0},{"$f":"SUM(L54:L55)","v":0},"Х","Х"]
["Обслуговування внутрішніх боргових зобов’язань ",2410,320,0,"Х","Х","Х","Х","Х",0,0,0,"Х","Х"]
["Обслуговування зовнішніх боргових зобов’язань ",2420,330,0,"Х","Х","Х","Х","Х",0,0,0,"Х","Х"]
["Поточні трансферти",2600,340,{"$f":"SUM(D57:D59)","v":0},"Х","Х","Х","Х","Х",{"$f":"SUM(J57:J59)","v":0},{"$f":"SUM(K57:K59)","v":0},{"$f":"SUM(L57:L59)","v":0},"Х","Х"]
["Субсидії та поточні трансферти підприємствам (установам, організаціям)",2610,350,0,"Х","Х","Х","Х","Х",0,0,0,"Х","Х"]
["Поточні трансферти органам державного управління інших рівнів",2620,360,0,"Х","Х","Х","Х","Х",0,0,0,"Х","Х"]
["Поточні трансферти  урядам іноземних держав та міжнародним організаціям",2630,370,0,"Х","Х","Х","Х","Х",0,0,0,"Х","Х"]
["Соціальне забезпечення",2700,380,{"$f":"SUM(D61:D63)","v":0},"Х","Х","Х","Х","Х",{"$f":"SUM(J61:J63)","v":0},{"$f":"SUM(K61:K63)","v":0},{"$f":"SUM(L61:L63)","v":0},"Х","Х"]
["Виплата пенсій і допомоги",2710,390,0,"Х","Х","Х","Х","Х",0,0,0,"Х","Х"]
["Стипендії ",2720,400,0,"Х","Х","Х","Х","Х",0,0,0,"Х","Х"]
["Інші виплати населенню",2730,410,0,"Х","Х","Х","Х","Х",0,0,0,"Х","Х"]
["Інші поточні видатки",2800,420,0,"Х","Х","Х","Х","Х",0,0,0,"Х","Х"]
["Капітальні видатки",3000,430,{"$f":"D66+D80","v":0},"Х","Х","Х","Х","Х",{"$f":"J66+J80","v":0},{"$f":"K66+K80","v":0},{"$f":"L66+L80","v":0},"Х","Х"]
["Придбання основного капіталу",3100,440,{"$f":"D67+D68+D71+D74+D78+D79","v":0},"Х","Х","Х","Х","Х",{"$f":"J67+J68+J71+J74+J78+J79","v":0},{"$f":"K67+K68+K71+K74+K78+K79","v":0},{"$f":"L67+L68+L71+L74+L78+L79","v":0},"Х","Х"]
["Придбання обладнання і предметів довгострокового користування",3110,450,0,"Х","Х","Х","Х","Х",0,0,0,"Х","Х"]
["Капітальне будівництво (придбання)",3120,460,{"$f":"SUM(D69:D70)","v":0},"Х","Х","Х","Х","Х",{"$f":"SUM(J69:J70)","v":0},{"$f":"SUM(K69:K70)","v":0},{"$f":"SUM(L69:L70)","v":0},"Х","Х"]
["Капітальне будівництво (придбання) житла",3121,470,0,"Х","Х","Х","Х","Х",0,0,0,"Х","Х"]
[" Капітальне  будівництво (придбання) інших об’єктів ",3122,480,0,"Х","Х","Х","Х","Х",0,0,0,"Х","Х"]
["Капітальний ремонт",3130,490,{"$f":"SUM(D72:D73)","v":0},"Х","Х","Х","Х","Х",{"$f":"SUM(J72:J73)","v":0},{"$f":"SUM(K72:K73)","v":0},{"$f":"SUM(L72:L73)","v":0},"Х","Х"]
["  Капітальний ремонт житлового фонду (приміщень)",3131,500,0,"Х","Х","Х","Х","Х",0,0,0,"Х","Х"]
["  Капітальний ремонт інших об’єктів ",3132,510,0,"Х","Х","Х","Х","Х",0,0,0,"Х","Х"]
["Реконструкція  та  реставрація ",3140,520,{"$f":"SUM(D75:D77)","v":0},"Х","Х","Х","Х","Х",{"$f":"SUM(J75:J77)","v":0},{"$f":"SUM(K75:K77)","v":0},{"$f":"SUM(L75:L77)","v":0},"Х","Х"]
["  Реконструкція житлового фонду (приміщень)",3141,530,0,"Х","Х","Х","Х","Х",0,0,0,"Х","Х"]
["  Реконструкція та реставрація  інших об’єктів",3142,540,0,"Х","Х","Х","Х","Х",0,0,0,"Х","Х"]
["  Реставрація пам’яток культури, історії та архітектури",3143,550,0,"Х","Х","Х","Х","Х",0,0,0,"Х","Х"]
["Створення державних запасів і резервів",3150,560,0,"Х","Х","Х","Х","Х",0,0,0,"Х","Х"]
["Придбання землі  та нематеріальних активів",3160,570,0,"Х","Х","Х","Х","Х",0,0,0,"Х","Х"]
["Капітальні трансферти",3200,580,{"$f":"SUM(D81:D83)","v":0},"Х","Х","Х","Х","Х",{"$f":"SUM(J81:J83)","v":0},{"$f":"SUM(K81:K83)","v":0},{"$f":"SUM(L81:L83)","v":0},"Х","Х"]
["Капітальні трансферти підприємствам (установам, організаціям)",3210,590,0,"Х","Х","Х","Х","Х",0,0,0,"Х","Х"]
["Капітальні трансферти органам державного управління інших рівнів",3220,600,0,"Х","Х","Х","Х","Х",0,0,0,"Х","Х"]
["Капітальні трансферти  урядам іноземних держав та міжнародним організаціям",3230,610,0,"Х","Х","Х","Х","Х",0,0,0,"Х","Х"]
["Капітальні трансферти населенню",3240,620,0,"Х","Х","Х","Х","Х",0,0,0,"Х","Х"]
[null,null,630]
[null,null,640]
[null,null,650]
["Внутрішнє кредитування",4100,630,{"$f":"D89","v":0},"Х","Х","Х","Х","Х",{"$f":"J89","v":0},{"$f":"K89","v":0},{"$f":"L89","v":0},"Х","Х"]
["Надання внутрішніх кредитів",4110,640,{"$f":"SUM(D90:D92)","v":0},"Х","Х","Х","Х","Х",{"$f":"SUM(J90:J92)","v":0},{"$f":"SUM(K90:K92)","v":0},{"$f":"SUM(L90:L92)","v":0},"Х","Х"]
["  Надання кредитів органам державного управління інших  рівнів",4111,650,0,"Х","Х","Х","Х","Х",0,0,0,"Х","Х"]
["  Надання кредитів підприємствам, установам, організаціям",4112,660,0,"Х","Х","Х","Х","Х",0,0,0,"Х","Х"]
["  Надання інших внутрішніх кредитів",4113,670,0,"Х","Х","Х","Х","Х",0,0,0,"Х","Х"]
[null,null,null,null,null,null,null,null,null,0,0,0]
[null,null,null,null,null,null,null,null,null,0,0,0]
[null,null,null,null,null,null,null,null,null,0,0,0]
[null,null,null,null,null,null,null,null,null,0,0,0]
["Зовнішнє кредитування",4200,680,{"$f":"D98","v":0},"Х","Х","Х","Х","Х",{"$f":"J98","v":0},{"$f":"K98","v":0},{"$f":"L98","v":0},"Х","Х"]
["Надання зовнішніх кредитів",4210,690,0,"Х","Х","Х","Х","Х",0,0,0,"Х","Х"]
["Повернення зовнішніх кредитів",4220,710,"Х","Х",null,"Х",null,"Х","Х",null,"Х","Х"]
[]
[{"$f":"ЗАПОЛНИТЬ!F30","v":"Начальник"},null,null,null,{"$f":"ЗАПОЛНИТЬ!F26","v":"Коваль М.С."}]
[null,"(підпис)",null,null,"(ініціали, прізвище)"]
[{"$f":"ЗАПОЛНИТЬ!F31","v":"Головний бухгалтер"},null,null,null,{"$f":"ЗАПОЛНИТЬ!F28","v":"Жук О.С."}]
[null,"(підпис)",null,null,"(ініціали, прізвище)"]
[{"$f":"ЗАПОЛНИТЬ!C19","v":"1 квітня 2020 року"}]

{"sheet":"Ф.4.3","index":4,"n_rows":102,"n_cols":14,"rows_kept":102,"cut":false,"hidden":false,"merged":[[14,0,14,1],[17,0,19,0],[17,4,19,4],[18,5,19,5],[17,5,17,6],[18,6,19,6],[4,0,4,7],[11,4,11,9],[10,1,10,9],[12,4,12,12],[14,4,14,12],[17,12,17,13],[13,4,13,12],[13,0,13,1],[12,0,12,1],[11,0,11,1],[99,6,99,8],[17,8,19,8],[17,9,17,10],[18,10,19,10],[97,1,97,3],[97,6,97,8],[17,2,19,2],[17,3,19,3],[100,1,100,3],[100,6,100,7],[99,1,99,3],[98,1,98,3],[98,6,98,7],[8,12,8,13],[9,12,9,13],[18,13,19,13],[18,12,19,12],[18,9,19,9],[0,8,2,13],[9,1,9,9],[3,0,3,12],[8,1,8,9],[17,1,19,1],[17,7,19,7],[5,0,5,12],[10,12,10,13],[7,12,7,13],[17,11,19,11]]}
[null,null,null,null,null,null,null,null,"Додаток 4\nдо Порядку складання бюджетної звітності розпорядниками та одержувачами бюджетних коштів, звітності фондами загальнообов’язкового державного соціального і пенсійного страхування (пункт 1 розділу ІІ)"]
[]
[]
["ЗВІТ"]
[{"$f":"IF([1]ЗАПОЛНИТЬ!$F$7=1,CONCATENATE([1]шапки!A5),CONCATENATE([1]шапки!A5,[1]шапки!C5))","v":"про надходження і використання інших надходжень спеціального фонду (форма№ 4-3д, "},null,null,null,null,null,null,null,{"$f":"IF([1]ЗАПОЛНИТЬ!$F$7=1,[1]шапки!C5,[1]шапки!D5)","v":"№ 4-3м)"},{"$f":"IF([1]ЗАПОЛНИТЬ!$F$7=1,[1]шапки!D5,\"\")","v":""}]
[{"$f":"CONCATENATE(\"за \",ЗАПОЛНИТЬ!$B$17,\" \",ЗАПОЛНИТЬ!$C$17)","v":"за рік  2020 р."}]
[]
[null,null,null,null,null,null,null,null,null,null,null,null,"коди"]
["Установа",{"$f":"ЗАПОЛНИТЬ!B3","v":"Відділ освіти Жовківської РДА (Зарудцівська ЗОШ І-ІІ ст.)"},null,null,null,null,null,null,null,null,{"$f":"ЗАПОЛНИТЬ!A13","v":"за ЄДРПОУ"},null,{"$f":"ЗАПОЛНИТЬ!B13","v":"39013038"}]
["Територія",{"$f":"ЗАПОЛНИТЬ!B5","v":"800300, Львівська обл., м.Жовква , вул.Є.Коновальця,4"},null,null,null,null,null,null,null,null,{"$f":"ЗАПОЛНИТЬ!A14","v":"за КОАТУУ"},null,{"$f":"ЗАПОЛНИТЬ!B14","v":4622700000}]
["Організаційно-правова форма господарювання",{"$f":"ЗАПОЛНИТЬ!D15","v":"Орган державної влади"},null,null,null,null,null,null,null,null,{"$f":"ЗАПОЛНИТЬ!A15","v":"за КОПФГ"},null,{"$f":"ЗАПОЛНИТЬ!B15","v":410}]
["Код та назва відомчої класифікації видатків та кредитування державного бюджету ",null,null,{"$f":"ЗАПОЛНИТЬ!H9","v":0},{"$f":"IF(D12>0,VLOOKUP(D12,#REF!,2,FALSE),\"\")","v":""}]
["Код та назва програмної класифікації видатків та кредитування державного бюджету",null,null,null,{"$f":"IF(D13>0,VLOOKUP(D13,#REF!,2,FALSE),\"\")","v":""}]
["Код та назва типової відомчої класифікації видатків та кредитування місцевих бюджетів",null,null,{"$f":"ЗАПОЛНИТЬ!H10","v":"6"},{"$f":"ЗАПОЛНИТЬ!I10","v":"Орган з питань освіти і науки"}]
["Код та назва програмної класифікації видатків та кредитування місцевих бюджетів (код та назва Типової програмної класифікації видатків та кредитування місцевих бюджетів / Тимчасової класифікації видатків та кредитування для бюджетів місцевого самоврядування, які не застосовують програмно-цільового методу)"]
["Періодичність: місячна, квартальна, річна"]
["Одиниця виміру: грн, коп."]
["Показники","КЕКВ та/або ККК","Код рядка","Затверджено\nна звітний рік","Затверджено на звітний період (рік)1","Залишок на початок звітного року",null,"Перера-ховано залишок","Надійшло коштів за звітний період (рік)","Касові за звітний період (рік)",null,"Фактичні за звітний період (рік)","Залишок на кінець звітного періоду (року)"]
[null,null,null,null,null,"усього","у тому числі на рахунках в установах банків",null,null,"усього","у тому числі перера-ховані з рахунків в установах банків",null,"усього","у тому числі на рахунках в установах банків"]
[]
[1,2,3,4,5,6,7,8,9,10,11,12,13,14]
["Видатки та надання кредитів -  усього","Х","010",{"$f":"D24+D59+D79+D84","v":0},{"$f":"E26+E29+E32+E33+E37+E45+E46+E86+E54","v":0},{"$f":"F24+F59+F79+F84","v":0},0,0,0,0,0,0,{"$f":"F22-H22+I22-J22","v":0},{"$f":"N24+N59+N79+N84","v":0}]
["у тому числі:"]
["Поточні видатки",2000,"020",{"$f":"D25+D30+D47+D50+D54+D58","v":0},0,{"$f":"F25+F30+F47+F50+F54+F58","v":0},{"$f":"G25+G30+G47+G50+G54+G58","v":0},0,0,0,{"$f":"K25+K30+K47+K50+K54+K58","v":0},{"$f":"L25+L30+L47+L50+L54+L58","v":0},{"$f":"F24-H24+I24-J24","v":0},{"$f":"N25+N30+N47+N50+N54+N58","v":0}]
["Оплата праці і нарахування на заробітну плату",2100,"030",{"$f":"D26+D29","v":0},0,{"$f":"F26+F29","v":0},0,0,0,0,0,0,{"$f":"F25-H25+I25-J25","v":0},{"$f":"N26+N29","v":0}]
["Оплата праці ",2110,"040",{"$f":"SUM(D27:D28)","v":0},0,{"$f":"SUM(F27:F28)","v":0},{"$f":"SUM(G27:G28)","v":0},0,0,0,{"$f":"SUM(K27:K28)","v":0},0,0,{"$f":"SUM(N27:N28)","v":0}]
["  Заробітна плата",2111,"050",0,0,0,0,0,0,0,0,0,0,0]
["  Грошове  забезпечення військовослужбовців",2112,"060",0,0,0,0,0,0,0,0,0,0,0]
["Нарахування на оплату праці",2120,"070",0,0,0,0,0,0,0,0,0,0,0]
["Використання товарів і послуг",2200,"080",{"$f":"SUM(D31:D37)+D44","v":0},0,{"$f":"SUM(F31:F37)+F44","v":0},0,0,0,0,0,0,0,{"$f":"SUM(N31:N37)+N44","v":0}]
["Предмети, матеріали, обладнання та інвентар",2210,"090",0,0,0,0,0,0,0,0,0,0,0]
["Медикаменти та перев’язувальні матеріали",2220,100,0,0,0,0,0,0,0,0,0,0,0]
["Продукти харчування",2230,110,0,0,0,0,0,0,0,0,0,0,0]
["Оплата послуг (крім комунальних)",2240,120,0,0,0,0,0,0,0,0,0,0,0]
["Видатки на відрядження",2250,130,0,0,0,0,0,0,0,0,0,0,0]
["Видатки та заходи спеціального призначення",2260,140,0,0,0,0,0,0,0,0,0,0,0]
["Оплата комунальних послуг та енергоносіїв  ",2270,150,{"$f":"SUM(D38:D43)","v":0},0,{"$f":"SUM(F38:F43)","v":0},0,0,0,0,0,0,0,{"$f":"SUM(N38:N43)","v":0}]
["  Оплата теплопостачання",2271,160,0,0,0,0,0,0,0,0,0,0,0]
["  Оплата водопостачання  та водовідведення",2272,170,0,0,0,0,0,0,0,0,0,0,0]
["  Оплата електроенергії",2273,180,0,0,0,0,0,0,0,0,0,0,0]
["  Оплата природного газу",2274,190,0,0,0,0,0,0,0,0,0,0,0]
["  Оплата інших енергоносіїв",2275,200,0,0,0,0,0,0,0,0,0,0,0]
["  Оплата енергосервісу",2276,210,0,0,0,0,0,0,0,0,0,0,0]
["Дослідження і розробки, окремі заходи по реалізації державних (регіональних) програм",2280,220,{"$f":"SUM(D45:D46)","v":0},0,{"$f":"SUM(F45:F46)","v":0},0,0,0,0,0,0,0,{"$f":"SUM(N45:N46)","v":0}]
["  Дослідження і розробки, окремі заходи розвитку по реалізації державних (регіональних) програм",2281,230,0,0,0,0,0,0,0,0,0,0,0]
["  Окремі заходи по реалізації державних (регіональних) програм, не віднесені до заходів розвитку",2282,240,0,0,0,0,0,0,0,0,0,0,0]
["Обслуговування боргових зобов’язань ",2400,250,{"$f":"SUM(D48:D49)","v":0},0,{"$f":"SUM(F48:F49)","v":0},{"$f":"SUM(G48:G49)","v":0},0,0,0,{"$f":"SUM(K48:K49)","v":0},0,0,{"$f":"SUM(N48:N49)","v":0}]
["Обслуговування внутрішніх боргових зобов’язань ",2410,260,0,0,0,0,0,0,0,0,0,0,0]
["Обслуговування зовнішніх боргових зобов’язань ",2420,270,0,0,0,0,0,0,0,0,0,0,0]
["Поточні трансферти",2600,280,{"$f":"SUM(D51:D53)","v":0},0,{"$f":"SUM(F51:F53)","v":0},{"$f":"SUM(G51:G53)","v":0},0,0,0,{"$f":"SUM(K51:K53)","v":0},0,0,{"$f":"SUM(N51:N53)","v":0}]
["Субсидії та поточні трансферти підприємствам (установам, організаціям)",2610,290,0,0,0,0,0,0,0,0,0,0,0]
["Поточні трансферти органам державного управління інших рівнів",2620,300,0,0,0,0,0,0,0,0,0,0,0]
["Поточні трансферти  урядам іноземних держав та міжнародним організаціям",2630,310,0,0,0,0,0,0,0,0,0,0,0]
["Соціальне забезпечення",2700,320,{"$f":"SUM(D55:D57)","v":0},0,{"$f":"SUM(F55:F57)","v":0},{"$f":"SUM(G55:G57)","v":0},0,0,0,{"$f":"SUM(K55:K57)","v":0},0,0,{"$f":"SUM(N55:N57)","v":0}]
["Виплата пенсій і допомоги",2710,330,0,0,0,0,0,0,0,0,0,0,0]
["Стипендії ",2720,340,0,0,0,0,0,0,0,0,0,0,0]
["Інші виплати населенню",2730,350,0,0,0,0,0,0,0,0,0,0,0]
["Інші поточні видатки",2800,360,0,0,0,0,0,0,0,0,0,0,0]
["Капітальні видатки",3000,370,{"$f":"D60+D74","v":0},0,{"$f":"F60+F74","v":0},{"$f":"G60+G74","v":0},0,0,0,{"$f":"K60+K74","v":0},0,0,{"$f":"N60+N74","v":0}]
["Придбання основного капіталу",3100,380,{"$f":"D61+D62+D65+D68+D72+D73","v":0},0,{"$f":"F61+F62+F65+F68+F72+F73","v":0},{"$f":"G61+G62+G65+G68+G72+G73","v":0},0,0,0,{"$f":"K61+K62+K65+K68+K72+K73","v":0},0,0,{"$f":"N61+N62+N65+N68+N72+N73","v":0}]
["Придбання обладнання і предметів довгострокового користування",3110,390,0,0,0,0,0,null,null,0,0,0,0]
["Капітальне будівництво (придбання)",3120,400,{"$f":"SUM(D63:D64)","v":0},0,{"$f":"SUM(F63:F64)","v":0},{"$f":"SUM(G63:G64)","v":0},0,0,0,{"$f":"SUM(K63:K64)","v":0},0,0,{"$f":"SUM(N63:N64)","v":0}]
["Капітальне будівництво (придбання) житла",3121,410,0,0,0,0,0,0,0,0,0,0,0]
[" Капітальне  будівництво (придбання) інших об’єктів ",3122,420,0,0,0,0,0,0,0,0,0,0,0]
["Капітальний ремонт",3130,430,{"$f":"SUM(D66:D67)","v":0},0,{"$f":"SUM(F66:F67)","v":0},{"$f":"SUM(G66:G67)","v":0},0,0,0,{"$f":"SUM(K66:K67)","v":0},0,0,{"$f":"SUM(N66:N67)","v":0}]
["  Капітальний ремонт житлового фонду (приміщень)",3131,440,0,0,0,0,0,0,0,0,0,0,0]
["  Капітальний ремонт інших об’єктів ",3132,450,0,0,0,0,0,null,null,null,0,0,0]
["Реконструкція  та  реставрація ",3140,460,{"$f":"SUM(D69:D71)","v":0},0,{"$f":"SUM(F69:F71)","v":0},{"$f":"SUM(G69:G71)","v":0},0,0,0,{"$f":"SUM(K69:K71)","v":0},0,0,{"$f":"SUM(N69:N71)","v":0}]
["  Реконструкція житлового фонду (приміщень)",3141,470,0,0,0,0,0,0,0,0,0,0,0]
["  Реконструкція та реставрація  інших об’єктів",3142,480,0,0,0,0,0,0,0,0,0,0,0]
["  Реставрація пам’яток культури, історії та архітектури",3143,490,0,0,0,0,0,0,0,0,0,0,0]
["Створення державних запасів і резервів",3150,500,0,0,0,0,0,0,0,0,0,0,0]
["Придбання землі  та нематеріальних активів",3160,510,0,0,0,0,0,0,0,0,0,0,0]
["Капітальні трансферти",3200,520,{"$f":"SUM(D75:D78)","v":0},0,{"$f":"SUM(F75:F78)","v":0},{"$f":"SUM(G75:G78)","v":0},0,0,0,{"$f":"SUM(K75:K78)","v":0},0,0,{"$f":"SUM(N75:N78)","v":0}]
["Капітальні трансферти підприємствам (установам, організаціям)",3210,530,0,0,0,0,0,0,0,0,0,0,0]
["Капітальні трансферти органам державного управління інших рівнів",3220,540,0,0,0,0,0,0,0,0,0,0,0]
["Капітальні трансферти  урядам іноземних держав та міжнародним організаціям",3230,550,0,0,0,0,0,0,0,0,0,0,0]
["Капітальні трансферти населенню",3240,560,0,0,0,0,0,0,0,0,0,0,0]
["Внутрішнє кредитування",4100,570,{"$f":"SUM(D80)","v":0},0,0,0,0,0,0,0,0,0,0]
["Надання внутрішніх кредитів",4110,580,{"$f":"SUM(D81:D83)","v":0},0,{"$f":"SUM(F81:F83)","v":0},{"$f":"SUM(G81:G83)","v":0},0,0,0,{"$f":"SUM(K81:K83)","v":0},0,0,{"$f":"SUM(N81:N83)","v":0}]
["  Надання кредитів органам державного управління інших  рівнів",4111,590,0,0,0,0,0,0,0,0,0,0,0]
["  Надання кредитів підприємствам, установам, організаціям",4112,600,0,0,0,0,0,0,0,0,0,0,0]
["  Надання інших внутрішніх кредитів",4113,610,0,0,0,0,0,0,0,0,0,0,0]
["Зовнішнє кредитування",4200,620,{"$f":"D85","v":0},0,0,0,0,0,0,0,0,0,0]
["Надання зовнішніх кредитів",4210,630,0,0,0,0,0,0,0,0,0,0,0]
["Інші видатки",5000,640,"X",0,"X","X","X","X","X","X","X","X","X"]
[]
[]
[]
[]
[]
[]
[]
[]
["1 Заповнюється розпорядниками бюджетних коштів."]
[]
[]
[{"$f":"ЗАПОЛНИТЬ!F30","v":"Начальник"},null,null,null,null,null,{"$f":"ЗАПОЛНИТЬ!F26","v":"Коваль М.С."}]
[null,"(підпис)",null,null,null,null,"(ініціали, прізвище)"]
[{"$f":"ЗАПОЛНИТЬ!F31","v":"Головний бухгалтер"},null,null,null,null,null,{"$f":"ЗАПОЛНИТЬ!F28","v":"Жук О.С."}]
[null,"(підпис)",null,null,null,null,"(ініціали, прізвище)"]
[{"$f":"ЗАПОЛНИТЬ!C19","v":"1 квітня 2020 року"}]